[Event "Live Chess"]
[Site "Chess.com"]
[Date "2024.06.01"]
[Round "-"]
[White "GEMdzq"]
[Black "chessfiction"]
[Result "0-1"]
[WhiteElo "2332"]
[BlackElo "2430"]
[TimeControl "300"]
[EndTime "9:04:37 PDT"]
[Termination "chessfiction won by resignation"]

1. e4 {[%clk 0:04:52.2]} 1... d6 {[%clk 0:04:57]} 2. d4 {[%clk 0:04:50.6]} 2...
Nf6 {[%clk 0:04:55.2]} 3. Bd3 {[%clk 0:04:50]} 3... c6 {[%clk 0:04:55.1]} 4. c3
{[%clk 0:04:49.3]} 4... Qc7 {[%clk 0:04:39.6]} 5. Nf3 {[%clk 0:04:46.6]} 5...
Bg4 {[%clk 0:04:37.6]} 6. Nbd2 {[%clk 0:04:42.7]} 6... Nbd7 {[%clk 0:04:36.4]}
7. h3 {[%clk 0:04:41]} 7... Bh5 {[%clk 0:04:35.1]} 8. O-O {[%clk 0:04:34.4]}
8... e5 {[%clk 0:04:33.5]} 9. Qc2 {[%clk 0:04:24.1]} 9... Be7 {[%clk 0:04:32.3]}
10. Re1 {[%clk 0:04:17.9]} 10... O-O {[%clk 0:04:28.8]} 11. b3 {[%clk
0:04:02.8]} 11... Rfe8 {[%clk 0:04:25.9]} 12. Bb2 {[%clk 0:04:01.6]} 12... Rad8
{[%clk 0:04:23.9]} 13. Rac1 {[%clk 0:03:51.2]} 13... a6 {[%clk 0:04:23.1]} 14.
a4 {[%clk 0:03:42.5]} 14... h6 {[%clk 0:04:21.5]} 15. Ra1 {[%clk 0:03:34.5]}
15... Bg6 {[%clk 0:04:14.8]} 16. a5 {[%clk 0:03:32.5]} 16... Bf8 {[%clk
0:04:09.1]} 17. Nh4 {[%clk 0:03:28.4]} 17... Bh7 {[%clk 0:04:07]} 18. Bc4 {[%clk
0:03:20.3]} 18... d5 {[%clk 0:04:02.5]} 19. Bd3 {[%clk 0:03:15.8]} 19... dxe4
{[%clk 0:03:54.2]} 20. Nxe4 {[%clk 0:03:13.3]} 20... Nxe4 {[%clk 0:03:54.1]} 21.
Bxe4 {[%clk 0:03:12.2]} 21... Bxe4 {[%clk 0:03:54]} 22. Rxe4 {[%clk 0:03:11.2]}
22... Nf6 {[%clk 0:03:49]} 23. Rxe5 {[%clk 0:02:44]} 23... Rxe5 {[%clk
0:03:45.8]} 24. dxe5 {[%clk 0:02:43.9]} 24... Qxe5 {[%clk 0:03:45.1]} 25. c4
{[%clk 0:02:43.1]} 25... Qe4 {[%clk 0:03:31.9]} 26. Qxe4 {[%clk 0:02:41.6]}
26... Nxe4 {[%clk 0:03:30.5]} 27. Nf3 {[%clk 0:02:40]} 27... Bc5 {[%clk
0:03:24.7]} 28. Rf1 {[%clk 0:02:11.4]} 28... Nxf2 {[%clk 0:03:17.8]} 29. Rxf2
{[%clk 0:02:09.5]} 29... Rd1+ {[%clk 0:03:16]} 0-1

[Event "Live Chess"]
[Site "Chess.com"]
[Date "2024.06.01"]
[Round "-"]
[White "CheDA13"]
[Black "Enhard"]
[Result "1-0"]
[WhiteElo "1503"]
[BlackElo "1458"]
[TimeControl "300"]
[EndTime "9:04:41 PDT"]
[Termination "CheDA13 won by checkmate"]

1. e4 {[%clk 0:04:59]} 1... e6 {[%clk 0:04:58.4]} 2. d4 {[%clk 0:04:57.9]} 2...
d5 {[%clk 0:04:57.9]} 3. Nd2 {[%clk 0:04:57.6]} 3... Nf6 {[%clk 0:04:56.3]} 4.
e5 {[%clk 0:04:57.1]} 4... Nfd7 {[%clk 0:04:55.8]} 5. Bd3 {[%clk 0:04:56.6]}
5... c5 {[%clk 0:04:55]} 6. c3 {[%clk 0:04:56]} 6... Nc6 {[%clk 0:04:54.2]} 7.
Ngf3 {[%clk 0:04:55.3]} 7... Qb6 {[%clk 0:04:53]} 8. O-O {[%clk 0:04:54.9]} 8...
cxd4 {[%clk 0:04:51.4]} 9. cxd4 {[%clk 0:04:54.8]} 9... Nxd4 {[%clk 0:04:49]}
10. Nxd4 {[%clk 0:04:54.3]} 10... Qxd4 {[%clk 0:04:48]} 11. Nf3 {[%clk
0:04:54.1]} 11... Qb6 {[%clk 0:04:45.5]} 12. Qa4 {[%clk 0:04:53.5]} 12... Be7
{[%clk 0:04:38.8]} 13. Qg4 {[%clk 0:04:51.8]} 13... g6 {[%clk 0:04:34.6]} 14.
Bh6 {[%clk 0:04:51.3]} 14... Bf8 {[%clk 0:04:31.7]} 15. Bg5 {[%clk 0:04:33.5]}
15... Bg7 {[%clk 0:04:30.1]} 16. Rac1 {[%clk 0:04:28.2]} 16... O-O {[%clk
0:04:26.6]} 17. h4 {[%clk 0:04:24]} 17... h6 {[%clk 0:04:20.8]} 18. Bf4 {[%clk
0:04:15.3]} 18... h5 {[%clk 0:04:16.7]} 19. Qh3 {[%clk 0:04:09.9]} 19... Qxb2
{[%clk 0:03:59.6]} 20. g4 {[%clk 0:03:55.8]} 20... hxg4 {[%clk 0:03:51.3]} 21.
Qxg4 {[%clk 0:03:54.9]} 21... Nxe5 {[%clk 0:03:49.9]} 22. Nxe5 {[%clk
0:03:49.4]} 22... Bxe5 {[%clk 0:03:48.5]} 23. h5 {[%clk 0:03:37.3]} 23... Bxf4
{[%clk 0:03:41.3]} 24. Qxf4 {[%clk 0:03:28.7]} 24... Qg7 {[%clk 0:03:28.6]} 25.
Kh1 {[%clk 0:03:25.9]} 25... g5 {[%clk 0:03:23.4]} 26. Qg4 {[%clk 0:03:22.1]}
26... e5 {[%clk 0:03:16.4]} 27. Bf5 {[%clk 0:03:14.1]} 27... Bxf5 {[%clk
0:03:13.6]} 28. Qxf5 {[%clk 0:03:14]} 28... f6 {[%clk 0:03:06.2]} 29. Rg1 {[%clk
0:03:04]} 29... Qh7 {[%clk 0:03:02.8]} 30. Qe6+ {[%clk 0:02:56.5]} 30... Qf7
{[%clk 0:03:01.4]} 31. Qf5 {[%clk 0:02:55.5]} 31... Qh7 {[%clk 0:02:59.6]} 32.
Qe6+ {[%clk 0:02:54.7]} 32... Kg7 {[%clk 0:02:56.5]} 33. Rc7+ {[%clk 0:02:52.4]}
33... Rf7 {[%clk 0:02:39.2]} 34. Qxf7+ {[%clk 0:02:47.2]} 34... Kh8 {[%clk
0:02:36.6]} 35. Qxh7# {[%clk 0:02:46.5]} 1-0

[Event "Live Chess"]
[Site "Chess.com"]
[Date "2024.06.01"]
[Round "-"]
[White "Eva3337"]
[Black "Grace6363"]
[Result "1-0"]
[WhiteElo "1127"]
[BlackElo "1098"]
[TimeControl "300"]
[EndTime "9:04:49 PDT"]
[Termination "Eva3337 won by checkmate"]

1. e4 {[%clk 0:04:56.3]} 1... c5 {[%clk 0:04:58.3]} 2. Nf3 {[%clk 0:04:55]} 2...
Nc6 {[%clk 0:04:56.1]} 3. c3 {[%clk 0:04:53.9]} 3... d5 {[%clk 0:04:53.7]} 4. e5
{[%clk 0:04:51.9]} 4... Bg4 {[%clk 0:04:50]} 5. Be2 {[%clk 0:04:50.1]} 5... Bxf3
{[%clk 0:04:45.2]} 6. Bxf3 {[%clk 0:04:46]} 6... Nxe5 {[%clk 0:04:42.4]} 7. d4
{[%clk 0:04:40.1]} 7... Nxf3+ {[%clk 0:04:37.8]} 8. Qxf3 {[%clk 0:04:38.4]} 8...
cxd4 {[%clk 0:04:31.3]} 9. cxd4 {[%clk 0:04:35]} 9... e6 {[%clk 0:04:23.3]} 10.
O-O {[%clk 0:04:31.3]} 10... Nf6 {[%clk 0:04:21.5]} 11. Bg5 {[%clk 0:04:26.7]}
11... Be7 {[%clk 0:04:20]} 12. Nc3 {[%clk 0:04:24.5]} 12... a6 {[%clk
0:04:11.2]} 13. Rfe1 {[%clk 0:04:09.2]} 13... Qb6 {[%clk 0:04:07.1]} 14. Bxf6
{[%clk 0:03:44.8]} 14... Bxf6 {[%clk 0:04:03.1]} 15. Nxd5 {[%clk 0:03:41.4]}
15... Qd6 {[%clk 0:03:37.7]} 16. Nxf6+ {[%clk 0:03:33.4]} 16... gxf6 {[%clk
0:03:36.6]} 17. Qxf6 {[%clk 0:03:31.5]} 17... Kd7 {[%clk 0:03:33.2]} 18. Qxf7+
{[%clk 0:03:27.1]} 18... Qe7 {[%clk 0:03:20.9]} 19. Qf3 {[%clk 0:03:17.3]} 19...
Rab8 {[%clk 0:03:07.8]} 20. d5 {[%clk 0:03:05.1]} 20... Rhf8 {[%clk 0:03:05.4]}
21. dxe6+ {[%clk 0:02:59.1]} 21... Ke8 {[%clk 0:02:57.7]} 22. Qh5+ {[%clk
0:02:52.2]} 22... Kd8 {[%clk 0:02:53.1]} 23. Red1+ {[%clk 0:02:46.2]} 23... Kc8
{[%clk 0:02:46.8]} 24. Rac1+ {[%clk 0:02:44.5]} 24... Qc7 {[%clk 0:02:37.8]} 25.
Rxc7+ {[%clk 0:02:39.2]} 25... Kxc7 {[%clk 0:02:37]} 26. Qc5# {[%clk 0:02:37.8]}
1-0

[Event "Live Chess"]
[Site "Chess.com"]
[Date "2024.06.01"]
[Round "-"]
[White "matt1979"]
[Black "Nathaniel250"]
[Result "1/2-1/2"]
[WhiteElo "1364"]
[BlackElo "1384"]
[TimeControl "300"]
[EndTime "9:05:19 PDT"]
[Termination "Game drawn by agreement"]

1. f4 {[%clk 0:04:52]} 1... e6 {[%clk 0:04:49.1]} 2. Nf3 {[%clk 0:04:46.8]} 2...
d5 {[%clk 0:04:44.8]} 3. e3 {[%clk 0:04:45.2]} 3... Nc6 {[%clk 0:04:41.4]} 4.
Bb5 {[%clk 0:04:43.6]} 4... Bd7 {[%clk 0:04:39.9]} 5. O-O {[%clk 0:04:41.7]}
5... a6 {[%clk 0:04:32.5]} 6. Bxc6 {[%clk 0:04:40.3]} 6... Bxc6 {[%clk
0:04:31.4]} 7. b3 {[%clk 0:04:39.5]} 7... Nf6 {[%clk 0:04:25.9]} 8. Bb2 {[%clk
0:04:37.9]} 8... Be7 {[%clk 0:04:14.2]} 9. Ne5 {[%clk 0:04:36.2]} 9... O-O
{[%clk 0:04:08.7]} 10. Qe1 {[%clk 0:04:29.2]} 10... Nd7 {[%clk 0:04:00.1]} 11.
Nxc6 {[%clk 0:04:24.3]} 11... bxc6 {[%clk 0:03:56.9]} 12. Qg3 {[%clk 0:04:21.6]}
12... Bf6 {[%clk 0:03:54.2]} 13. Bxf6 {[%clk 0:04:19.7]} 13... Nxf6 {[%clk
0:03:54.1]} 14. d3 {[%clk 0:04:12.8]} 14... c5 {[%clk 0:03:45.6]} 15. Qh4 {[%clk
0:04:11.6]} 15... Nd7 {[%clk 0:03:38.9]} 16. Qh3 {[%clk 0:04:08.5]} 16... Nb6
{[%clk 0:03:34.3]} 17. Rf3 {[%clk 0:04:07.1]} 17... c4 {[%clk 0:03:30.3]} 18.
Rg3 {[%clk 0:04:05.7]} 18... cxd3 {[%clk 0:03:20.8]} 19. Qh6 {[%clk 0:04:03.6]}
19... g6 {[%clk 0:02:22.6]} 20. Rh3 {[%clk 0:04:00.6]} 20... Re8 {[%clk
0:02:20.1]} 21. Qxh7+ {[%clk 0:03:58.6]} 21... Kf8 {[%clk 0:02:19.3]} 22. cxd3
{[%clk 0:03:43.4]} 22... Qf6 {[%clk 0:02:12.7]} 23. Qh8+ {[%clk 0:03:37.2]}
23... Qxh8 {[%clk 0:02:08.2]} 24. Rxh8+ {[%clk 0:03:36]} 24... Ke7 {[%clk
0:02:08.1]} 25. Rxe8+ {[%clk 0:03:31.2]} 25... Rxe8 {[%clk 0:02:08]} 26. Nc3
{[%clk 0:03:29.8]} 26... Nd7 {[%clk 0:01:58.4]} 27. Rc1 {[%clk 0:03:25.3]}
1/2-1/2

[Event "Live Chess"]
[Site "Chess.com"]
[Date "2024.06.01"]
[Round "-"]
[White "TJ-W"]
[Black "Keithdfg"]
[Result "1-0"]
[WhiteElo "1574"]
[BlackElo "1727"]
[TimeControl "300"]
[EndTime "9:05:29 PDT"]
[Termination "TJ-W won by resignation"]

1. e4 {[%clk 0:04:58.6]} 1... d6 {[%clk 0:04:58.7]} 2. d4 {[%clk 0:04:57.1]}
2... Nf6 {[%clk 0:04:56.8]} 3. Nc3 {[%clk 0:04:55.6]} 3... Nbd7 {[%clk
0:04:55.9]} 4. f4 {[%clk 0:04:47.3]} 4... e5 {[%clk 0:04:55]} 5. dxe5 {[%clk
0:04:45.5]} 5... dxe5 {[%clk 0:04:53.6]} 6. fxe5 {[%clk 0:04:44.3]} 6... Nxe5
{[%clk 0:04:52.8]} 7. Qxd8+ {[%clk 0:04:44.2]} 7... Kxd8 {[%clk 0:04:52.1]} 8.
Bf4 {[%clk 0:04:42.7]} 8... Ng6 {[%clk 0:04:49.6]} 9. Bg3 {[%clk 0:04:38.2]}
9... c6 {[%clk 0:04:47.3]} 10. O-O-O+ {[%clk 0:04:37.1]} 10... Ke8 {[%clk
0:04:45.6]} 11. Bc4 {[%clk 0:04:34.2]} 11... Nh5 {[%clk 0:04:43]} 12. Nf3 {[%clk
0:04:30.2]} 12... Nxg3 {[%clk 0:04:41]} 13. hxg3 {[%clk 0:04:27.3]} 13... f6
{[%clk 0:04:39.1]} 14. e5 {[%clk 0:04:17.9]} 14... fxe5 {[%clk 0:04:16.3]} 15.
Nxe5 {[%clk 0:04:12.7]} 15... Nxe5 {[%clk 0:04:13.1]} 16. Rhe1 {[%clk
0:04:10.9]} 1-0

[Event "Live Chess"]
[Site "Chess.com"]
[Date "2024.06.01"]
[Round "-"]
[White "Berdgross"]
[Black "edward33_24h"]
[Result "0-1"]
[WhiteElo "570"]
[BlackElo "625"]
[TimeControl "300"]
[EndTime "9:05:32 PDT"]
[Termination "edward33_24h won by checkmate"]

1. d4 {[%clk 0:04:56.3]} 1... d5 {[%clk 0:04:56.3]} 2. e3 {[%clk 0:04:55]} 2...
e6 {[%clk 0:04:53.3]} 3. Nf3 {[%clk 0:04:52.7]} 3... Nf6 {[%clk 0:04:47.2]} 4.
Nc3 {[%clk 0:04:50.7]} 4... Bb4 {[%clk 0:04:42.2]} 5. Bd2 {[%clk 0:04:48.1]}
5... Ne4 {[%clk 0:04:35.8]} 6. Nb5 {[%clk 0:04:42.2]} 6... Bxd2+ {[%clk
0:04:28.9]} 7. Nxd2 {[%clk 0:04:39.7]} 7... c6 {[%clk 0:04:23.4]} 8. Nxe4 {[%clk
0:04:31]} 8... dxe4 {[%clk 0:04:16.3]} 9. Nc3 {[%clk 0:04:23.8]} 9... Qb6 {[%clk
0:04:11.7]} 10. Nxe4 {[%clk 0:04:20.7]} 10... Nd7 {[%clk 0:04:05.2]} 11. Nd6+
{[%clk 0:04:16.3]} 11... Ke7 {[%clk 0:03:55.8]} 12. Nc4 {[%clk 0:04:05.7]} 12...
Qb5 {[%clk 0:03:50.4]} 13. Ne5 {[%clk 0:03:47.4]} 13... Qxb2 {[%clk 0:03:43.3]}
14. Nxd7 {[%clk 0:03:45.2]} 14... Bxd7 {[%clk 0:03:39.1]} 15. h3 {[%clk
0:03:37.1]} 15... Rhe8 {[%clk 0:03:31.1]} 16. g4 {[%clk 0:03:25.9]} 16... c5
{[%clk 0:03:25.1]} 17. dxc5 {[%clk 0:03:21]} 17... Qc3+ {[%clk 0:03:15.4]} 18.
Ke2 {[%clk 0:03:15]} 18... Bb5+ {[%clk 0:03:09.6]} 19. Kf3 {[%clk 0:03:04.9]}
19... Bc6+ {[%clk 0:02:58]} 20. Kg3 {[%clk 0:02:47.8]} 20... Qe5+ {[%clk
0:02:53.1]} 21. f4 {[%clk 0:02:43.2]} 21... Qxe3+ {[%clk 0:02:48.9]} 22. Kh2
{[%clk 0:02:28.3]} 22... Qxf4+ {[%clk 0:02:36.9]} 23. Kg1 {[%clk 0:02:20.8]}
23... Qg3+ {[%clk 0:02:18.5]} 24. Bg2 {[%clk 0:02:09.2]} 24... Qxg2# {[%clk
0:02:14.4]} 0-1

[Event "Live Chess"]
[Site "Chess.com"]
[Date "2024.06.01"]
[Round "-"]
[White "SirGerhard"]
[Black "Dhaydon19"]
[Result "1/2-1/2"]
[WhiteElo "2750"]
[BlackElo "2708"]
[TimeControl "300"]
[EndTime "9:05:57 PDT"]
[Termination "Game drawn by repetition"]

1. d4 {[%clk 0:04:56]} 1... c6 {[%clk 0:04:59.4]} 2. c4 {[%clk 0:04:54.7]} 2...
d5 {[%clk 0:04:58]} 3. Nf3 {[%clk 0:04:54.1]} 3... Nf6 {[%clk 0:04:57.3]} 4. Nc3
{[%clk 0:04:53.6]} 4... e6 {[%clk 0:04:56.6]} 5. Bg5 {[%clk 0:04:52.2]} 5... Be7
{[%clk 0:04:55.7]} 6. e3 {[%clk 0:04:51.2]} 6... Nbd7 {[%clk 0:04:19]} 7. Bd3
{[%clk 0:04:49.4]} 7... O-O {[%clk 0:04:18.1]} 8. O-O {[%clk 0:04:48.1]} 8... b6
{[%clk 0:04:16.9]} 9. cxd5 {[%clk 0:04:45.7]} 9... cxd5 {[%clk 0:04:15.8]} 10.
Ne5 {[%clk 0:04:39.5]} 10... Nxe5 {[%clk 0:04:09]} 11. dxe5 {[%clk 0:04:38.1]}
11... Nd7 {[%clk 0:04:08.6]} 12. Bf4 {[%clk 0:04:21]} 12... Bb7 {[%clk
0:03:57.7]} 13. Qg4 {[%clk 0:04:19]} 13... g6 {[%clk 0:03:54.5]} 14. Rad1 {[%clk
0:04:14.8]} 14... a6 {[%clk 0:03:50.1]} 15. Qg3 {[%clk 0:04:08.9]} 15... Bh4
{[%clk 0:03:46.3]} 16. Qh3 {[%clk 0:04:05.5]} 16... Bg5 {[%clk 0:03:44.5]} 17.
Bxg5 {[%clk 0:04:00.3]} 17... Qxg5 {[%clk 0:03:42.8]} 18. f4 {[%clk 0:03:59.9]}
18... Qe7 {[%clk 0:03:41.9]} 19. Ne2 {[%clk 0:03:52.2]} 19... Nc5 {[%clk
0:03:40.2]} 20. Nd4 {[%clk 0:03:39.3]} 20... a5 {[%clk 0:03:25]} 21. Bc2 {[%clk
0:03:35.1]} 21... f6 {[%clk 0:03:18.6]} 22. exf6 {[%clk 0:03:27.2]} 22... Qxf6
{[%clk 0:03:18.1]} 23. Qg3 {[%clk 0:03:23.2]} 23... Rae8 {[%clk 0:03:16.2]} 24.
a3 {[%clk 0:02:57.8]} 24... e5 {[%clk 0:03:10.5]} 25. fxe5 {[%clk 0:02:56.1]}
25... Qxe5 {[%clk 0:03:10.1]} 26. Rxf8+ {[%clk 0:02:54.4]} 26... Kxf8 {[%clk
0:03:09.8]} 27. Qxe5 {[%clk 0:02:40]} 27... Rxe5 {[%clk 0:03:08.8]} 28. b4
{[%clk 0:02:38.8]} 28... axb4 {[%clk 0:03:07.2]} 29. axb4 {[%clk 0:02:38]} 29...
Ne6 {[%clk 0:03:06.9]} 30. Kf2 {[%clk 0:02:35.8]} 30... Nxd4 {[%clk 0:03:05.7]}
31. Rxd4 {[%clk 0:02:34.6]} 31... Ke7 {[%clk 0:03:03.5]} 32. h4 {[%clk
0:02:32.4]} 32... Re6 {[%clk 0:02:59.1]} 33. g4 {[%clk 0:02:28.8]} 33... Kd6
{[%clk 0:02:56.8]} 34. g5 {[%clk 0:02:26]} 34... Ke7 {[%clk 0:02:52.3]} 35. h5
{[%clk 0:02:17.7]} 35... Bc6 {[%clk 0:02:49.1]} 36. hxg6 {[%clk 0:02:14.2]}
36... hxg6 {[%clk 0:02:48.8]} 37. Rh4 {[%clk 0:02:13.1]} 37... Re5 {[%clk
0:02:45.8]} 38. Rh7+ {[%clk 0:02:06]} 38... Kd6 {[%clk 0:02:44.6]} 39. Rh6
{[%clk 0:01:57.3]} 39... Rxg5 {[%clk 0:02:43.5]} 40. Rxg6+ {[%clk 0:01:56.7]}
40... Rxg6 {[%clk 0:02:42]} 41. Bxg6 {[%clk 0:01:56]} 41... Ke5 {[%clk
0:02:40.6]} 42. Ke2 {[%clk 0:01:48.4]} 42... d4 {[%clk 0:02:36.4]} 43. Kd2
{[%clk 0:01:43]} 43... Be4 {[%clk 0:02:33.5]} 44. Bf7 {[%clk 0:01:37.8]} 44...
Bd5 {[%clk 0:02:31.9]} 45. Bg6 {[%clk 0:01:34.3]} 45... Be4 {[%clk 0:02:31.3]}
46. Bf7 {[%clk 0:01:33.5]} 46... Bd5 {[%clk 0:02:30.1]} 47. Bg6 {[%clk
0:01:32.6]} 47... Be4 {[%clk 0:02:28.7]} 1/2-1/2

[Event "Live Chess"]
[Site "Chess.com"]
[Date "2024.06.01"]
[Round "-"]
[White "will-balkwill"]
[Black "Zhevzh1k7"]
[Result "1-0"]
[WhiteElo "1077"]
[BlackElo "1082"]
[TimeControl "300"]
[EndTime "9:06:06 PDT"]
[Termination "will-balkwill won by checkmate"]

1. e4 {[%clk 0:04:58.4]} 1... c6 {[%clk 0:04:55.8]} 2. d4 {[%clk 0:04:55.8]}
2... d5 {[%clk 0:04:55.1]} 3. f3 {[%clk 0:04:55.1]} 3... Qb6 {[%clk 0:04:52.9]}
4. Bd3 {[%clk 0:04:39]} 4... e6 {[%clk 0:04:49.4]} 5. Ne2 {[%clk 0:04:35.1]}
5... c5 {[%clk 0:04:46.2]} 6. Nbc3 {[%clk 0:03:52.4]} 6... cxd4 {[%clk
0:04:43.5]} 7. Nxd4 {[%clk 0:03:48.4]} 7... Qxd4 {[%clk 0:04:41.2]} 8. Bb5+
{[%clk 0:03:46.9]} 8... Bd7 {[%clk 0:04:31.6]} 9. Qxd4 {[%clk 0:03:43.7]} 9...
Bxb5 {[%clk 0:04:28.3]} 10. Nxb5 {[%clk 0:03:43.6]} 10... Na6 {[%clk 0:04:25.2]}
11. exd5 {[%clk 0:03:22.9]} 11... exd5 {[%clk 0:04:17.8]} 12. Qxd5 {[%clk
0:03:16.5]} 12... Bc5 {[%clk 0:03:59.2]} 13. Nc7+ {[%clk 0:03:01]} 13... Nxc7
{[%clk 0:03:56.8]} 14. Qxc5 {[%clk 0:03:00.3]} 14... Na6 {[%clk 0:03:31.6]} 15.
Qe3+ {[%clk 0:02:56.6]} 15... Ne7 {[%clk 0:03:30.1]} 16. O-O {[%clk 0:02:55.4]}
16... f6 {[%clk 0:03:17.6]} 17. Re1 {[%clk 0:02:53.9]} 17... Kf7 {[%clk
0:03:12.8]} 18. Qxe7+ {[%clk 0:02:51.7]} 18... Kg6 {[%clk 0:03:12.3]} 19. Qe4+
{[%clk 0:02:48.8]} 19... Kf7 {[%clk 0:03:10.5]} 20. Qc4+ {[%clk 0:02:40.7]}
20... Kg6 {[%clk 0:03:08.4]} 21. Re4 {[%clk 0:02:34.2]} 21... f5 {[%clk
0:03:01.8]} 22. Re6+ {[%clk 0:02:30.9]} 22... Kf7 {[%clk 0:03:00.6]} 23. Rxa6+
{[%clk 0:02:30.1]} 23... Ke7 {[%clk 0:02:57.4]} 24. Qe6+ {[%clk 0:02:27.4]}
24... Kd8 {[%clk 0:02:56.7]} 25. Bg5+ {[%clk 0:02:25.9]} 25... Kc7 {[%clk
0:02:54.8]} 26. Qd6+ {[%clk 0:02:20.7]} 26... Kc8 {[%clk 0:02:53.2]} 27. Qc5+
{[%clk 0:02:01.4]} 27... Kd7 {[%clk 0:02:48.3]} 28. Qxf5+ {[%clk 0:01:58.1]}
28... Kc7 {[%clk 0:02:45.8]} 29. Qc5+ {[%clk 0:01:55]} 29... Kd7 {[%clk
0:02:44.5]} 30. Rd6+ {[%clk 0:01:53.7]} 30... Ke8 {[%clk 0:02:43.2]} 31. Qe5+
{[%clk 0:01:48.8]} 31... Kf7 {[%clk 0:02:41.7]} 32. Qe7+ {[%clk 0:01:46.1]}
32... Kg8 {[%clk 0:02:41]} 33. Rad1 {[%clk 0:01:37.1]} 33... h6 {[%clk 0:02:35]}
34. Rd8+ {[%clk 0:01:35.6]} 34... Rxd8 {[%clk 0:02:33.3]} 35. Rxd8+ {[%clk
0:01:35.1]} 35... Kh7 {[%clk 0:02:32.4]} 36. Rxh8+ {[%clk 0:01:34.9]} 36... Kxh8
{[%clk 0:02:31.5]} 37. Bxh6 {[%clk 0:01:29.2]} 37... gxh6 {[%clk 0:02:30.5]} 38.
Kf2 {[%clk 0:01:28.9]} 38... Kg8 {[%clk 0:02:29.7]} 39. Kg3 {[%clk 0:01:28.8]}
39... h5 {[%clk 0:02:29.2]} 40. Kf4 {[%clk 0:01:28.7]} 40... b5 {[%clk
0:02:28.6]} 41. Kf5 {[%clk 0:01:28.6]} 41... b4 {[%clk 0:02:26.4]} 42. Kg6
{[%clk 0:01:28.5]} 42... a5 {[%clk 0:02:26.1]} 43. Qg7# {[%clk 0:01:28.4]} 1-0

[Event "Live Chess"]
[Site "Chess.com"]
[Date "2024.06.01"]
[Round "-"]
[White "Hazban"]
[Black "karina55"]
[Result "1-0"]
[WhiteElo "2034"]
[BlackElo "1731"]
[TimeControl "300"]
[EndTime "9:06:07 PDT"]
[Termination "Hazban won by resignation"]

1. d4 {[%clk 0:04:59]} 1... f5 {[%clk 0:04:57.6]} 2. Nc3 {[%clk 0:04:57.3]} 2...
Nf6 {[%clk 0:04:52.7]} 3. Bg5 {[%clk 0:04:56.1]} 3... e6 {[%clk 0:04:50.7]} 4.
e4 {[%clk 0:04:54.4]} 4... h6 {[%clk 0:04:47.3]} 5. Bxf6 {[%clk 0:04:46.8]} 5...
Qxf6 {[%clk 0:04:44.9]} 6. exf5 {[%clk 0:04:45.5]} 6... exf5 {[%clk 0:04:43.5]}
7. Bc4 {[%clk 0:04:38.7]} 7... Bb4 {[%clk 0:04:37.6]} 8. Qe2+ {[%clk 0:04:37.5]}
8... Qe7 {[%clk 0:04:23]} 9. O-O-O {[%clk 0:04:35.2]} 9... Bxc3 {[%clk
0:04:16.3]} 10. Qh5+ {[%clk 0:04:31.5]} 10... Kf8 {[%clk 0:03:53.8]} 11. bxc3
{[%clk 0:04:26.3]} 11... Qg5+ {[%clk 0:03:47.9]} 12. Qxg5 {[%clk 0:04:24.4]}
12... hxg5 {[%clk 0:03:47]} 13. Nf3 {[%clk 0:04:23.3]} 13... g4 {[%clk
0:03:44.5]} 14. Ne5 {[%clk 0:04:22.4]} 14... Rh6 {[%clk 0:03:38.7]} 15. h3
{[%clk 0:04:19.2]} 15... gxh3 {[%clk 0:03:33.6]} 16. Rxh3 {[%clk 0:04:11.8]}
16... Rxh3 {[%clk 0:03:31.1]} 17. Ng6+ {[%clk 0:04:07.8]} 17... Ke8 {[%clk
0:03:20.4]} 18. Re1+ {[%clk 0:04:03.1]} 18... Kd8 {[%clk 0:03:19.1]} 19. gxh3
{[%clk 0:03:46.2]} 19... c6 {[%clk 0:03:09.9]} 20. Bf7 {[%clk 0:03:35.9]} 20...
Kc7 {[%clk 0:03:03.5]} 21. Re8 {[%clk 0:03:32.9]} 21... Na6 {[%clk 0:03:02]} 22.
Ne7 {[%clk 0:03:22.4]} 22... b5 {[%clk 0:02:58.3]} 23. f4 {[%clk 0:03:07.1]}
23... Bb7 {[%clk 0:02:53.8]} 24. Rxa8 {[%clk 0:03:06]} 24... Bxa8 {[%clk
0:02:52.6]} 25. Nxf5 {[%clk 0:03:05.2]} 25... c5 {[%clk 0:02:45.1]} 26. d5
{[%clk 0:03:01.6]} 26... d6 {[%clk 0:02:34.4]} 27. Nxg7 {[%clk 0:03:00.1]} 27...
b4 {[%clk 0:02:33.3]} 28. c4 {[%clk 0:02:58.5]} 28... Nb8 {[%clk 0:02:30.3]} 29.
Be8 {[%clk 0:02:44.7]} 29... Nd7 {[%clk 0:02:24.4]} 30. Bxd7 {[%clk 0:02:43.2]}
1-0

[Event "Live Chess"]
[Site "Chess.com"]
[Date "2024.06.01"]
[Round "-"]
[White "degringolade64"]
[Black "GeorgianaMorea"]
[Result "1-0"]
[WhiteElo "2040"]
[BlackElo "1997"]
[TimeControl "300"]
[EndTime "9:06:21 PDT"]
[Termination "degringolade64 won by resignation"]

1. e4 {[%clk 0:04:56.4]} 1... c5 {[%clk 0:04:58.4]} 2. Nf3 {[%clk 0:04:54.5]}
2... e6 {[%clk 0:04:55.8]} 3. Nc3 {[%clk 0:04:49.2]} 3... a6 {[%clk 0:04:50]} 4.
g3 {[%clk 0:04:46.2]} 4... Nc6 {[%clk 0:04:36.9]} 5. Bg2 {[%clk 0:04:43.8]} 5...
d6 {[%clk 0:04:33.2]} 6. d4 {[%clk 0:04:42.2]} 6... cxd4 {[%clk 0:04:31.8]} 7.
Nxd4 {[%clk 0:04:42.1]} 7... Nf6 {[%clk 0:04:30.9]} 8. O-O {[%clk 0:04:33.2]}
8... Qc7 {[%clk 0:04:19.9]} 9. Nxc6 {[%clk 0:04:24.8]} 9... bxc6 {[%clk
0:04:18.7]} 10. Na4 {[%clk 0:04:17.5]} 10... Be7 {[%clk 0:04:16.4]} 11. c4
{[%clk 0:04:15.8]} 11... O-O {[%clk 0:04:13.4]} 12. b3 {[%clk 0:04:10.4]} 12...
Bb7 {[%clk 0:04:02.6]} 13. Bb2 {[%clk 0:03:48.4]} 13... d5 {[%clk 0:04:00.3]}
14. exd5 {[%clk 0:03:42.9]} 14... cxd5 {[%clk 0:03:59]} 15. Rc1 {[%clk
0:03:36.5]} 15... dxc4 {[%clk 0:03:55.3]} 16. Rxc4 {[%clk 0:03:33.3]} 16... Qb8
{[%clk 0:03:54]} 17. Re1 {[%clk 0:02:57.3]} 17... Bxg2 {[%clk 0:03:45.3]} 18.
Kxg2 {[%clk 0:02:57.2]} 18... Nd5 {[%clk 0:03:44.3]} 19. Be5 {[%clk 0:02:49.6]}
19... Qb7 {[%clk 0:03:38.2]} 20. Qf3 {[%clk 0:02:48.6]} 20... Rad8 {[%clk
0:03:33.2]} 21. Rec1 {[%clk 0:02:47]} 21... Bg5 {[%clk 0:03:27.4]} 22. R1c2
{[%clk 0:02:36.6]} 22... Rd7 {[%clk 0:03:21.2]} 23. Nc5 {[%clk 0:02:34.9]} 23...
Qa7 {[%clk 0:03:14.3]} 24. Nxd7 {[%clk 0:02:33.5]} 24... Qxd7 {[%clk 0:03:14.2]}
25. h4 {[%clk 0:02:32.4]} 25... Bh6 {[%clk 0:03:12.9]} 26. b4 {[%clk 0:02:15.3]}
26... Qb5 {[%clk 0:02:37.6]} 27. a3 {[%clk 0:02:12.5]} 27... Nb6 {[%clk
0:02:23.3]} 28. Rc5 {[%clk 0:02:09.7]} 28... Qa4 {[%clk 0:02:16.4]} 29. Bb2
{[%clk 0:02:08.4]} 29... Nd5 {[%clk 0:02:02.6]} 30. Rc8 {[%clk 0:02:06.3]} 30...
Ne7 {[%clk 0:01:53.4]} 31. Rxf8+ {[%clk 0:02:04.4]} 31... Kxf8 {[%clk
0:01:52.6]} 32. Qa8+ {[%clk 0:02:02.7]} 32... Qe8 {[%clk 0:01:51.7]} 33. Qxe8+
{[%clk 0:02:00.3]} 33... Kxe8 {[%clk 0:01:51.6]} 34. Rc7 {[%clk 0:01:58.3]}
34... Nd5 {[%clk 0:01:48.8]} 35. Ra7 {[%clk 0:01:57.1]} 1-0